fUST/lending_fUST_20250202
["ID","MTS","AMOUNT","RATE_DAILY","PERIOD"]
[351223837,1738447842887,-500.0,0.00016849,2]
[351223838,1738447842897,-500.0,0.00016849,2]
[351223839,1738447842907,-500.0,0.00016849,2]
[351223840,1738447842916,-958.06,0.00016849,2]
[351223841,1738447842927,-500.0,0.00016849,2]
[351223842,1738447842936,-500.0,0.00016849,2]
[351223843,1738447842946,-500.0,0.00016849,2]
[351223844,1738447842956,-742.59,0.00016849,2]
[351223845,1738447842966,-500.0,0.00016849,2]
[351223846,1738447842976,-651.54,0.00016849,2]
[351223847,1738447842985,-657.73,0.00016849,2]
[351223848,1738447842994,-500.0,0.00016849,2]
[351223849,1738447843004,-550.33,0.00016849,2]
[351223850,1738447843013,-528.79,0.00016849,2]
[351223851,1738447843022,-3032.87,0.00016849,2]
[351223852,1738447843031,-500.0,0.00016849,2]
[351223853,1738447843041,-697.98,0.00016849,2]
[351223854,1738447843050,-500.0,0.00016849,2]
[351223855,1738447843059,-919.44,0.00016849,2]
[351223856,1738447843069,-546.78,0.00016849,2]
[351223857,1738447843078,-500.0,0.00016849,2]
[351223858,1738447843087,-500.0,0.00016849,2]
[351223859,1738447843096,-690.22,0.00016849,2]
[351223860,1738447843105,-1743.31321667,0.00016849,2]
[351223861,1738447843118,-356.03678333,0.00016849,2]
[351223862,1738447843127,-2077.74362997,0.00016849,2]
[351223863,1738447843138,-1715.29381923,0.00016849,2]
[351223864,1738447843149,-1015.1825508,0.00016849,2]
[351223865,1738447843158,-500.0,0.00016849,2]
[351223866,1738447843167,-519.4,0.00016849,2]
[351223867,1738447843176,-731.42983958,0.00016854,2]
[351223868,1738447843186,-151.0,0.00016889,2]
[351223869,1738447843196,-396.0,0.00016915,2]
[351223870,1738447843205,-1000.0,0.0001698,2]
[351223871,1738447843214,-500.5,0.00016985,2]
[351223872,1738447843223,-151.0,0.00016986,2]
[351223873,1738447843232,-151.0,0.00016986,2]
[351223875,1738447843242,-500.0,0.00016986,2]
[351223876,1738447843251,-167.914443,0.00016986,2]
[351223878,1738447843260,-206.66,0.00016986,2]
[351223879,1738447843271,-500.0,0.00016986,2]
[351223880,1738447843281,-151.0,0.00016986,2]
[351223881,1738447843290,-500.0,0.00016986,2]
[351223882,1738447843299,-500.0,0.00016986,2]
[351223884,1738447843309,-500.0,0.00016986,2]
[351223885,1738447843318,-500.0,0.00016986,2]
[351223886,1738447843327,-101.98903923,0.00016986,2]
[351223887,1738447843339,-398.01096077,0.00016986,2]
[351223888,1738447843348,-160.8124,0.00016986,2]
[351223889,1738447843358,-500.0,0.00016986,2]
[351223890,1738447843367,-500.0,0.00016986,2]
[351223891,1738447843377,-500.0,0.00016986,2]
[351223892,1738447843386,-278.67663923,0.00016986,2]
[351223893,1738447843398,-221.32336077,0.00016986,2]
[351223894,1738447843407,-316.96447665,0.00016986,2]
[351223895,1738447843418,-183.03552335,0.00016986,2]
[351223896,1738447843430,-553.21663923,0.00016986,2]
[351223897,1738447843492,-96.64336077,0.00016986,2]
[351223898,1738447843503,-2056.33,0.00016986,2]
[351223899,1738447843515,-296.27384644,0.00016986,2]
[351223900,1738447843527,-203.72615356,0.00016986,2]
[351223901,1738447843536,-500.0,0.00016986,2]
[351223902,1738447843545,-488.86384642,0.00016986,2]
[351223903,1738447843559,-11.13615358,0.00016986,2]
[351223904,1738447843568,-500.0,0.00016986,2]
[351223905,1738447843578,-958.06,0.00016986,2]
[351223906,1738447843589,-500.0,0.00016986,2]
[351223907,1738447843598,-500.0,0.00016986,2]
[351223908,1738447843607,-186.46252128,0.00016986,2]
[351223909,1738447843617,-742.59,0.00016986,2]
[351223910,1738447843626,-320.59,0.00016986,2]
[351223911,1738447843637,-651.54,0.00016986,2]
[351223912,1738447843646,-657.73,0.00016986,2]
[351223913,1738447843655,-149.49528553,0.00016986,2]
[351223914,1738447843667,-259.0,0.00016986,2]
[351223915,1738447843678,-91.50471447,0.00016986,2]
[351223916,1738447843687,-536.07490116,0.00016986,2]
[351223939,1738447845991,-14.25509884,0.00016986,2]
[351223940,1738447846002,-151.0,0.00016986,2]
[351223941,1738447846012,-3032.87,0.00016986,2]
[351223942,1738447846022,-500.0,0.00016986,2]
[351223943,1738447846031,-697.98,0.00016986,2]
[351223944,1738447846041,-236.76,0.00016986,2]
[351223945,1738447846052,-919.44,0.00016986,2]
[351223946,1738447846062,-690.22,0.00016986,2]
[351223947,1738447846072,-500.0,0.00016986,2]
[351223948,1738447846081,-2099.35,0.00016986,2]
[351223949,1738447846091,-4808.22,0.00016986,2]
[351223950,1738447846099,-545.79,0.00016986,2]
[351223951,1738447846110,-519.4,0.00016986,2]
[351223952,1738447846119,-448.953,0.00017,2]
[351223953,1738447846128,-150.628,0.00017076,2]
[351223954,1738447846138,-456.74905368,0.00017089,2]
[351223955,1738447846147,-151.0,0.00017123,2]
[351223956,1738447846156,-500.0,0.00017123,2]
[351223957,1738447846166,-151.0,0.00017123,2]
[351223958,1738447846176,-500.0,0.00017123,2]
[351223959,1738447846185,-195.95970952,0.00017123,2]
[351223960,1738447846196,-500.0,0.00017123,2]
[351223961,1738447846206,-366.18659162,0.00017123,2]
[351223962,1738447846215,-500.0,0.00017123,2]
[351223963,1738447846223,-571.47093399,0.00017123,2]
[351223964,1738447846233,-500.0,0.00017123,2]
[351223965,1738447846243,-500.0,0.00017123,2]
[351223966,1738447846252,-463.60858936,0.00017123,2]
[351223967,1738447846262,-500.0,0.00017123,2]
[351223968,1738447846271,-500.0,0.00017123,2]
[351223969,1738447846281,-649.86,0.00017123,2]
[351223970,1738447846291,-2056.33,0.00017123,2]
[351223971,1738447846300,-500.0,0.00017123,2]
[351223972,1738447846310,-500.0,0.00017123,2]
[351223973,1738447846320,-500.0,0.00017123,2]
[351223974,1738447846329,-500.0,0.00017123,2]
[351223975,1738447846340,-958.06,0.00017123,2]
[351223976,1738447846350,-500.0,0.00017123,2]
[351223977,1738447846359,-500.0,0.00017123,2]
[351223978,1738447846369,-742.59,0.00017123,2]
[351223979,1738447846379,-651.54,0.00017123,2]
[351223980,1738447846389,-657.73,0.00017123,2]
[351223981,1738447846399,-500.0,0.00017123,2]
[351223982,1738447846408,-550.33,0.00017123,2]
[351223983,1738447846418,-3032.87,0.00017123,2]
[351223984,1738447846427,-500.0,0.00017123,2]
[351223985,1738447846437,-697.98,0.00017123,2]
[351223986,1738447846446,-919.44,0.00017123,2]
[351223987,1738447846456,-690.22,0.00017123,2]
[351223988,1738447846467,-2099.35,0.00017123,2]
[351223989,1738447846477,-4808.22,0.00017123,2]
[351223990,1738447846486,-519.4,0.00017123,2]
[351223991,1738447846496,-151.0,0.0001726,2]
[351223992,1738447846506,-151.0,0.0001726,2]
[351223993,1738447846520,-362.71975692,0.0001726,2]
[351223994,1738447846530,-500.0,0.0001726,2]
[351223995,1738447846540,-290.995532,0.0001726,2]
[351223996,1738447846551,-500.0,0.0001726,2]
[351223997,1738447846560,-500.0,0.0001726,2]
[351223998,1738447846570,-160.8124,0.0001726,2]
[351223999,1738447846579,-198.71133407,0.0001726,2]
[351224000,1738447846595,-301.28866593,0.0001726,2]
[351224001,1738447846605,-500.0,0.0001726,2]
[351224002,1738447846614,-500.0,0.0001726,2]
[351224003,1738447846624,-649.86,0.0001726,2]
[351224004,1738447846633,-2056.33,0.0001726,2]
[351224005,1738447846642,-500.0,0.0001726,2]
[351224006,1738447846651,-500.0,0.0001726,2]
[351224007,1738447846660,-308.78431203,0.0001726,2]
[351224008,1738447846671,-500.0,0.0001726,2]
[351224009,1738447846680,-958.06,0.0001726,2]
[351224010,1738447846690,-500.0,0.0001726,2]
[351224011,1738447846700,-500.0,0.0001726,2]
[351224012,1738447846710,-742.59,0.0001726,2]
[351224013,1738447846719,-651.54,0.0001726,2]
[351224014,1738447846731,-657.73,0.0001726,2]
[351224015,1738447846741,-500.0,0.0001726,2]
[351224016,1738447846750,-550.33,0.0001726,2]
[351224017,1738447846759,-209.93837469,0.0001726,2]
[351224018,1738447846768,-3032.87,0.0001726,2]
[351224019,1738447846777,-287.1668004,0.0001726,2]
[351224020,1738447846901,-410.8131996,0.0001726,2]
[351224021,1738447846911,-919.44,0.0001726,2]
[351224022,1738447846921,-690.22,0.0001726,2]
[351224023,1738447846931,-2099.35,0.0001726,2]
[351224024,1738447846942,-2427.45049121,0.0001726,2]
[351224036,1738448653586,226.397372,0.00013973,2]
[351224107,1738449032311,-1231.2626738,0.00015143,2]
[351224109,1738449032321,-178.601326,0.00015356,2]
[351224111,1738449032331,-178.601326,0.00015382,2]
[351224113,1738449032341,-166.0,0.00015398,2]
[351224114,1738449032350,-178.601326,0.00015407,2]
[351224116,1738449032359,-178.601326,0.00015433,2]
[351224118,1738449032368,-717.790335,0.00015515,2]
[351224120,1738449032378,-4249.87960374,0.00015921,2]
[351224122,1738449032387,-424.84278194,0.00016,2]
[351224124,1738449032396,-1695.16732376,0.00016338,2]
[351224126,1738449032404,-342.56179026,0.00016338,2]
[351224128,1738449032413,-195.832,0.000164,2]
[351224129,1738449032422,-500.0,0.00016437,2]
[351224131,1738449032432,-162.09617397,0.00016437,2]
[351224132,1738449032441,-500.0,0.00016437,2]
[351224133,1738449032455,-500.0,0.00016437,2]
[351224134,1738449032466,-500.0,0.00016437,2]
[351224135,1738449032476,-500.0,0.00016437,2]
[351224136,1738449032485,-290.53227443,0.00016437,2]
[351224137,1738449032495,-500.0,0.00016437,2]
[351224138,1738449032504,-500.0,0.00016437,2]
[351224139,1738449032513,-500.0,0.00016437,2]
[351224140,1738449032523,-500.0,0.00016437,2]
[351224141,1738449032532,-500.0,0.00016437,2]
[351224142,1738449032541,-500.0,0.00016437,2]
[351224143,1738449032552,-500.0,0.00016437,2]
[351224144,1738449032561,-500.0,0.00016437,2]
[351224145,1738449032571,-500.0,0.00016437,2]
[351224146,1738449032580,-500.0,0.00016437,2]
[351224147,1738449032590,-500.0,0.00016437,2]
[351224148,1738449032600,-500.0,0.00016437,2]
[351224149,1738449032609,-500.0,0.00016437,2]
[351224150,1738449032619,-500.0,0.00016437,2]
[351224151,1738449032628,-500.0,0.00016437,2]
[351224152,1738449032637,-500.0,0.00016437,2]
[351224153,1738449032650,-500.0,0.00016437,2]
[351224154,1738449032660,-500.0,0.00016437,2]
[351224155,1738449032670,-500.0,0.00016437,2]
[351224156,1738449032679,-500.0,0.00016437,2]
[351224157,1738449032688,-500.0,0.00016437,2]
[351224158,1738449032701,-500.0,0.00016437,2]
[351224159,1738449032711,-213.73017714,0.00016437,2]
[351224160,1738449032721,-500.0,0.00016437,2]
[351224161,1738449032730,-496.7466679,0.00016438,2]
[351224162,1738449032740,-500.0,0.00016438,2]
[351224163,1738449032749,-500.0,0.00016438,2]
[351224164,1738449032759,-500.0,0.00016438,2]
[351224165,1738449032768,-500.0,0.00016438,2]
[351224166,1738449032778,-500.0,0.00016438,2]
[351224167,1738449032788,-1000.0,0.00016438,2]
[351224168,1738449032797,-500.0,0.00016438,2]
[351224169,1738449032806,-500.0,0.00016438,2]
[351224170,1738449032816,-500.0,0.00016438,2]
[351224171,1738449032826,-500.0,0.00016438,2]
[351224172,1738449032835,-200.30241972,0.00016438,2]
[351224173,1738449032845,-500.0,0.00016438,2]
[351224174,1738449032854,-514.05433313,0.00016438,2]
[351224175,1738449032863,-500.0,0.00016438,2]
[351224176,1738449032873,-500.0,0.00016438,2]
[351224177,1738449032884,-500.0,0.00016438,2]
[351224178,1738449032894,-500.0,0.00016438,2]
[351224179,1738449032903,-500.0,0.00016438,2]
[351224180,1738449032912,-500.0,0.00016438,2]
[351224181,1738449032924,-500.0,0.00016438,2]
[351224182,1738449032934,-502.3444767,0.00016438,2]
[351224183,1738449032946,-500.0,0.00016438,2]
[351224184,1738449032960,-500.0,0.00016438,2]
[351224185,1738449032971,-500.0,0.00016438,2]
[351224186,1738449032980,-500.0,0.00016438,2]
[351224187,1738449032990,-500.0,0.00016438,2]
[351224188,1738449033000,-593.86953685,0.00016438,2]
[351224189,1738449033009,-500.0,0.00016438,2]
[351224190,1738449033018,-500.0,0.00016438,2]
[351224191,1738449033028,-500.0,0.00016438,2]
[351224192,1738449033038,-500.0,0.00016438,2]
[351224193,1738449033047,-500.0,0.00016438,2]
[351224194,1738449033057,-500.0,0.00016438,2]
[351224195,1738449033068,-500.0,0.00016438,2]
[351224196,1738449033078,-500.0,0.00016438,2]
[351224197,1738449033237,-500.0,0.00016438,2]
[351224198,1738449033248,-500.0,0.00016438,2]
[351224199,1738449033258,-500.0,0.00016438,2]
[351224200,1738449033268,-502.3730821,0.00016438,2]
[351224201,1738449033278,-500.0,0.00016438,2]
[351224202,1738449033287,-500.60495965,0.00016438,2]
[351224203,1738449033297,-500.0,0.00016438,2]
[351224204,1738449033308,-500.0,0.00016438,2]
[351224205,1738449033318,-500.0,0.00016438,2]
[351224206,1738449033328,-500.0,0.00016438,2]
[351224207,1738449033339,-563.39362249,0.00016438,2]
[351224208,1738449033350,-500.0,0.00016438,2]
[351224209,1738449033360,-500.0,0.00016438,2]
[351224210,1738449033371,-500.0,0.00016438,2]
[351224211,1738449033381,-500.0,0.00016438,2]
[351224212,1738449033392,-207.21046342,0.00016438,2]
[351224213,1738449033409,-292.78953658,0.00016438,2]
[351224214,1738449033419,-500.0,0.00016438,2]
[351224215,1738449033429,-500.0,0.00016438,2]
[351224216,1738449033439,-500.0,0.00016438,2]
[351224217,1738449033456,-500.0,0.00016438,2]
[351224218,1738449033465,-500.0,0.00016438,2]
[351224219,1738449033475,-500.0,0.00016438,2]
[351224220,1738449033486,-500.0,0.00016438,2]
[351224221,1738449033497,-500.0,0.00016438,2]
[351224222,1738449033507,-500.0,0.00016438,2]
[351224223,1738449033518,-500.0,0.00016438,2]
[351224224,1738449033528,-626.75212993,0.00016438,2]
[351224225,1738449033538,-500.0,0.00016438,2]
[351224226,1738449033548,-500.0,0.00016438,2]
[351224227,1738449033558,-500.0,0.00016438,2]
[351224228,1738449033569,-500.0,0.00016438,2]
[351224229,1738449033579,-500.0,0.00016438,2]
[351224230,1738449033592,-500.0,0.00016438,2]
[351224231,1738449033602,-13.98943684,0.00016438,2]
[351224232,1738449033615,-258.22368958,0.00016438,2]
[351224233,1738449033634,-270.77987125,0.00016438,2]
[351224234,1738449033644,-500.0,0.00016438,2]
[351224235,1738449033654,-534.68559103,0.00016438,2]
[351224236,1738449033664,-129.0327333,0.00016438,2]
[351224237,1738449033677,-320.53002,0.00016438,2]
[351224255,1738449038096,-50.4372467,0.00016438,2]
[351224257,1738449038107,-507.28372018,0.00016438,2]
[351224259,1738449038117,-500.0,0.00016438,2]
[351224261,1738449038127,-500.0,0.00016438,2]
[351224263,1738449038137,-500.0,0.00016438,2]
[351224265,1738449038146,-500.95105987,0.00016438,2]
[351224267,1738449038156,-500.0,0.00016438,2]
[351224269,1738449038166,-500.0,0.00016438,2]
[351224271,1738449038175,-476.42797325,0.00016438,2]
[351224274,1738449038188,-23.57202675,0.00016438,2]
[351224276,1738449038197,-500.0,0.00016438,2]
[351224278,1738449038213,-501.86310297,0.00016438,2]
[351224280,1738449038223,-500.0,0.00016438,2]
[351224283,1738449038232,-500.0,0.00016438,2]
[351224286,1738449038241,-500.0,0.00016438,2]
[351224289,1738449038251,-500.0,0.00016438,2]
[351224292,1738449038261,-500.0,0.00016438,2]
[351224294,1738449038270,-500.0,0.00016438,2]
[351224296,1738449038279,-500.0,0.00016438,2]
[351224298,1738449038288,-501.29372841,0.00016438,2]
[351224300,1738449038297,-500.0,0.00016438,2]
[351224302,1738449038307,-500.0,0.00016438,2]
[351224304,1738449038316,-500.0,0.00016438,2]
[351224306,1738449038325,-500.0,0.00016438,2]
[351224308,1738449038334,-500.0,0.00016438,2]
[351224310,1738449038344,-374.54014896,0.00016438,2]
[351224312,1738449038354,-500.0,0.00016438,2]
[351224313,1738449038362,-500.0,0.00016438,2]
[351224314,1738449038372,-505.59065001,0.00016438,2]
[351224316,1738449038381,-501.29465332,0.00016438,2]
[351224317,1738449038389,-500.0,0.00016438,2]
[351224318,1738449038398,-500.0,0.00016438,2]
[351224319,1738449038407,-500.0,0.00016438,2]
[351224320,1738449038416,-500.0,0.00016438,2]
[351224321,1738449038426,-500.0,0.00016438,2]
[351224322,1738449038435,-500.0,0.00016438,2]
[351224323,1738449038444,-250.54787121,0.00016438,2]
[351224324,1738449038458,-500.0,0.00016438,2]
[351224325,1738449038467,-500.0,0.00016438,2]
[351224326,1738449038479,-500.0,0.00016438,2]
[351224327,1738449038489,-500.0,0.00016438,2]
[351224328,1738449038498,-573.48053073,0.00016438,2]
[351224329,1738449038508,-500.0,0.00016438,2]
[351224330,1738449038520,-500.0,0.00016438,2]
[351224331,1738449038533,-500.0,0.00016438,2]
[351224332,1738449038554,-500.0,0.00016438,2]
[351224333,1738449038568,-500.0,0.00016438,2]
[351224334,1738449038581,-500.0,0.00016438,2]
[351224335,1738449038592,-500.0,0.00016438,2]
[351224336,1738449038605,-500.0,0.00016438,2]
[351224337,1738449038618,-500.0,0.00016438,2]
[351224338,1738449038630,-500.0,0.00016438,2]
[351224339,1738449038643,-495.0,0.00016438,2]
[351224340,1738449038656,-576.85171795,0.00016438,2]
[351224341,1738449038669,-500.0,0.00016438,2]
[351224342,1738449038682,-500.0,0.00016438,2]
[351224343,1738449038694,-500.0,0.00016438,2]
[351224344,1738449038713,-500.0,0.00016438,2]
[351224345,1738449038727,-500.0,0.00016438,2]
[351224346,1738449038739,-500.0,0.00016438,2]
[351224347,1738449038751,-500.0,0.00016438,2]
[351224348,1738449038764,-500.0,0.00016438,2]
[351224349,1738449038777,-500.0,0.00016438,2]
[351224350,1738449038789,-500.0,0.00016438,2]
[351224351,1738449038801,-500.0,0.00016438,2]
[351224352,1738449038814,-500.0,0.00016438,2]
[351224353,1738449038824,-506.82576773,0.00016438,2]
[351224354,1738449038834,-500.0,0.00016438,2]
[351224355,1738449038847,-591.49424595,0.00016438,2]
[351224356,1738449038857,-500.0,0.00016438,2]
[351224357,1738449038870,-500.0,0.00016438,2]
[351224358,1738449038882,-500.0,0.00016438,2]
[351224359,1738449038896,-500.0,0.00016438,2]
[351224360,1738449038908,-500.0,0.00016438,2]
[351224361,1738449038921,-500.0,0.00016438,2]
[351224362,1738449038936,-500.0,0.00016438,2]
[351224363,1738449038951,-500.0,0.00016438,2]
[351224364,1738449038966,-500.0,0.00016438,2]
[351224365,1738449038977,-500.0,0.00016438,2]
[351224366,1738449038988,-500.0,0.00016438,2]
[351224367,1738449038999,-500.0,0.00016438,2]
[351224368,1738449039010,-500.0,0.00016438,2]
[351224369,1738449039023,-500.0,0.00016438,2]
[351224370,1738449039036,-500.0,0.00016438,2]
[351224371,1738449039049,-500.0,0.00016438,2]
[351224372,1738449039061,-637.06709061,0.00016438,2]
[351224373,1738449039072,-500.0,0.00016438,2]
[351224374,1738449039084,-500.0,0.00016438,2]
[351224375,1738449039095,-500.0,0.00016438,2]
[351224376,1738449039108,-500.0,0.00016438,2]
[351224377,1738449039120,-527.46405005,0.00016438,2]
[351224378,1738449039131,-508.92719737,0.00016438,2]
[351224379,1738449039141,-500.0,0.00016438,2]
[351224380,1738449039151,-500.0,0.00016438,2]
[351224381,1738449039162,-500.0,0.00016438,2]
[351224382,1738449039174,-500.0,0.00016438,2]
[351224383,1738449039186,-500.0,0.00016438,2]
[351224384,1738449039197,-502.68207493,0.00016438,2]
[351224385,1738449039214,-500.0,0.00016438,2]
[351224386,1738449039227,-500.0,0.00016438,2]
[351224387,1738449039238,-500.37733758,0.00016438,2]
[351224388,1738449039250,-501.35732158,0.00016438,2]
[351224389,1738449039262,-500.0,0.00016438,2]
[351224390,1738449039273,-500.0,0.00016438,2]
[351224391,1738449039285,-500.0,0.00016438,2]
[351224392,1738449039296,-521.72713746,0.00016438,2]
[351224393,1738449039309,-500.99150561,0.00016438,2]
[351224394,1738449039320,-500.0,0.00016438,2]
[351224395,1738449039332,-500.0,0.00016438,2]
[351224396,1738449039343,-523.49635252,0.00016438,2]
[351224397,1738449039355,-500.0,0.00016438,2]
[351224398,1738449039366,-500.0,0.00016438,2]
[351224399,1738449039378,-500.0,0.00016438,2]
[351224400,1738449039389,-500.0,0.00016438,2]
[351224401,1738449039401,-500.0,0.00016438,2]
[351224402,1738449039412,-500.0,0.00016438,2]
[351224403,1738449039424,-500.0,0.00016438,2]
[351224404,1738449039435,-500.93019112,0.00016438,2]
[351224405,1738449039446,-619.61746308,0.00016438,2]
[351224406,1738449039463,-500.0,0.00016438,2]
[351224407,1738449039476,-500.0,0.00016438,2]
[351224408,1738449039487,-500.0,0.00016438,2]
[351224409,1738449039497,-500.0,0.00016438,2]
[351224410,1738449039508,-500.0,0.00016438,2]
[351224411,1738449039520,-500.0,0.00016438,2]
[351224412,1738449039532,-500.0,0.00016438,2]
[351224413,1738449039543,-500.0,0.00016438,2]
[351224414,1738449039554,-500.0,0.00016438,2]
[351224415,1738449039566,-500.0,0.00016438,2]
[351224416,1738449039578,-514.95164172,0.00016438,2]
[351224417,1738449039589,-500.0,0.00016438,2]
[351224418,1738449039600,-500.0,0.00016438,2]
[351224419,1738449039611,-472.15090734,0.00016438,2]
[351224420,1738449039622,-500.0,0.00016438,2]
[351224421,1738449039634,-500.0,0.00016438,2]
[351224422,1738449039646,-500.0,0.00016438,2]
[351224423,1738449039657,-500.0,0.00016438,2]
[351224426,1738449039668,-500.0,0.00016438,2]
[351224427,1738449039680,-500.0,0.00016438,2]
[351224428,1738449039692,-500.0,0.00016438,2]
[351224429,1738449039709,-500.0,0.00016438,2]
[351224430,1738449039723,-1043.28,0.00016438,2]
[351224431,1738449039734,-549.04909918,0.00016438,2]
[351224432,1738449039745,-500.0,0.00016438,2]
[351224433,1738449039755,-500.0,0.00016438,2]
[351224434,1738449039765,-500.0,0.00016438,2]
[351224435,1738449039774,-500.0,0.00016438,2]
[351224446,1738449039948,-500.0,0.00016438,2]
[351224447,1738449039971,-500.0,0.00016438,2]
[351224448,1738449039981,-500.0,0.00016438,2]
[351224449,1738449039991,-500.48994949,0.00016438,2]
[351224451,1738449040001,-500.0,0.00016438,2]
[351224453,1738449040011,-501.7182998,0.00016438,2]
[351224454,1738449040021,-500.0,0.00016438,2]
[351224456,1738449040030,-500.0,0.00016438,2]
[351224458,1738449040039,-500.0,0.00016438,2]
[351224460,1738449040049,-500.0,0.00016438,2]
[351224462,1738449040058,-500.0,0.00016438,2]
[351224464,1738449040068,-500.0,0.00016438,2]
[351224465,1738449040077,-500.0,0.00016438,2]
[351224466,1738449040097,-500.0,0.00016438,2]
[351224467,1738449040117,-496.65104479,0.00016438,2]
[351224468,1738449040127,-639.64003709,0.00016438,2]
[351224469,1738449040137,-505.04411957,0.00016438,2]
[351224470,1738449040147,-500.0,0.00016438,2]
[351224471,1738449040156,-500.0,0.00016438,2]
[351224472,1738449040166,-500.0,0.00016438,2]
[351224473,1738449040176,-500.0,0.00016438,2]
[351224474,1738449040186,-500.0,0.00016438,2]
[351224475,1738449040195,-500.0,0.00016438,2]
[351224476,1738449040209,-500.0,0.00016438,2]
[351224478,1738449040219,-500.0,0.00016438,2]
[351224479,1738449040229,-648.50544874,0.00016438,2]
[351224481,1738449040239,-360.44947422,0.00016438,2]
[351224483,1738449040248,-500.0,0.00016438,2]
[351224485,1738449040258,-389.0393081,0.00016438,2]
[351224487,1738449040268,-500.0,0.00016438,2]
[351224489,1738449040278,-500.0,0.00016438,2]
[351224491,1738449040287,-500.0,0.00016438,2]
[351224493,1738449040298,-500.0,0.00016438,2]
[351224495,1738449040307,-500.0,0.00016438,2]
[351224497,1738449040317,-500.0,0.00016438,2]
[351224499,1738449040328,-500.0,0.00016438,2]
[351224502,1738449040339,-500.0,0.00016438,2]
[351224503,1738449040348,-500.0,0.00016438,2]
[351224505,1738449040358,-500.0,0.00016438,2]
[351224507,1738449040367,-500.0,0.00016438,2]
[351224509,1738449040377,-320.61904583,0.00016438,2]
[351224510,1738449040386,-500.0,0.00016438,2]
[351224511,1738449040395,-382.63498747,0.00016438,2]
[351224513,1738449040406,-500.0,0.00016438,2]
[351224515,1738449040415,-500.0,0.00016438,2]
[351224516,1738449040425,-500.0,0.00016438,2]
[351224517,1738449040436,-500.0,0.00016438,2]
[351224518,1738449040445,-500.0,0.00016438,2]
[351224519,1738449040460,-540.76601751,0.00016438,2]
[351224520,1738449040470,-500.0,0.00016438,2]
[351224521,1738449040480,-500.0,0.00016438,2]
[351224522,1738449040489,-500.0,0.00016438,2]
[351224523,1738449040499,-500.0,0.00016438,2]
[351224524,1738449040508,-500.0,0.00016438,2]
[351224525,1738449040517,-500.0,0.00016438,2]
[351224526,1738449040527,-500.0,0.00016438,2]
[351224527,1738449040536,-500.0,0.00016438,2]
[351224529,1738449040546,-500.0,0.00016438,2]
[351224531,1738449040555,-500.0,0.00016438,2]
[351224532,1738449040564,-500.0,0.00016438,2]
[351224533,1738449040574,-500.0,0.00016438,2]
[351224534,1738449040584,-500.0,0.00016438,2]
[351224535,1738449040595,-500.0,0.00016438,2]
[351224536,1738449040605,-500.44987244,0.00016438,2]
[351224537,1738449040615,-502.13715398,0.00016438,2]
[351224538,1738449040625,-500.0,0.00016438,2]
[351224539,1738449040635,-500.0,0.00016438,2]
[351224540,1738449040644,-150.30833246,0.00016438,2]
[351224541,1738449040653,-501.19182421,0.00016438,2]